Cogmind - Beta 16 @@@ ROGUE MODE // 2025.11.15 @ 07:52:44 Player: Sir Cheese Result: Destroyed by VV-CYZ(R) with Subdweller Shrapnel Launcher Performance ------------- Evolutions (0) 0 Regions Visited (3) 600 Robots Destroyed (27) 135 Value Destroyed (519) 519 Prototype IDs (0) 0 Alien Tech Used (0) 0 Bonus (0) 0 TOTAL SCORE: 1254 Bonus ------- None Cogmind --------- Core Integrity 0/250 Matter 18/300 Energy 230/250 System Corruption 0% Temperature Cool (0) Movement Core (400) Ox7 Location -10/Subcaves Parts ------- > --- POWER (1) -------- Ion Engine > --- PROPULSION (2) --- (None) > --- UTILITY (2) ------ Medium Storage Unit > --- WEAPON (2) ------- Subdweller Beam Cannon Mini Grenade Launcher > --- INVENTORY (10) --- Subdweller Power Source Large Storage Unit Improved Sensor Array Improved Terrain Scanner Assault Rifle Minigun Mini Grenade Launcher Mining Laser Multitool Peak State ------------ > --- POWER ------------ Deuterium Engine > --- PROPULSION ------- Light Treads Light Treads > --- UTILITY ---------- Medium Storage Unit Improved Sensor Array > --- WEAPON ----------- Improved Light Cannon Improved Light Cannon > --- INVENTORY -------- Ion Engine Large Storage Unit Improved Terrain Scanner Hardened Light Armor Plating Medium Laser Assault Rifle Minigun Mini Grenade Launcher Mini Grenade Launcher Mining Laser [Rating: 14] Favorites ----------- Power Ion Engine Engine Ion Engine Propulsion Light Treads Treads Light Treads Wheel Subdweller Monowheel Utility Medium Storage Unit Device Seismic Detector Storage Medium Storage Unit Protection Hardened Light Armor Plating Weapon Improved Light Cannon Energy Gun Medium Laser Energy Cannon Subdweller Beam Cannon Ballistic Gun Assault Rifle Ballistic Cannon Improved Light Cannon Launcher Mini Grenade Launcher Special Weapon Mining Laser Build | -11 -10 -10 -10 ------- Run | Yrd Mat Min Sub Slots Evolved . | . . . . Power . | . . . . Propulsion . | . . . . Utility . | . . . . Weapon . | . . . . Parts Attached 25 | 7 7 3 8 Power 2 | 1 . 1 . Engine 2 | 1 . 1 . Core . | . . . . Reactor . | . . . . Propulsion 4 | 2 . . 2 Treads 2 | 2 . . . Leg . | . . . . Wheel 2 | . . . 2 Hover . | . . . . Flight . | . . . . Utility 9 | 2 4 2 1 Device 4 | 1 2 1 . Storage 4 | 1 2 1 . Processor . | . . . . Hackware . | . . . . Protection 1 | . . . 1 Artifact . | . . . . Weapon 10 | 2 3 . 5 Energy Gun 2 | 1 1 . . Energy Cannon 2 | . . . 2 Ballistic Gun 1 | 1 . . . Ballistic Cannon 2 | . 1 . 1 Launcher 2 | . . . 2 Special Weapon 1 | . 1 . . Impact Weapon . | . . . . Slashing Weapon . | . . . . Piercing Weapon . | . . . . Special Melee Weapon . | . . . . Unidentified Prototypes . | . . . . Parts Lost 8 | . 1 . 7 Power 1 | . . . 1 Propulsion 3 | . . . 3 Utility 2 | . 1 . 1 Weapon 2 | . . . 2 Highest Loss Streak 4 | . 1 . 4 To Critical Strikes . | . . . . Average Backups 7 | 1 7 9 9 Power . | . 1 1 . Propulsion . | . . . . Utility 2 | . 2 2 3 Weapon 4 | . 4 6 5 Tool/Special . | . . . . Unused Backups 7 | 1 . 2 4 Power 2 | . . 1 1 Propulsion . | . . . . Utility 1 | . . 1 . Weapon 3 | 1 . . 2 Tool/Special 1 | . . . 1 Average Slot Usage (%) 98 | . 99 98 98 Engine 13 | . 14 14 13 Treads 23 | . 28 28 17 Wheel 4 | . . . 9 Device 7 | . 13 13 . Storage 14 | . 14 14 14 Protection 5 | . . . 12 Energy Gun 7 | . 14 14 . Energy Cannon 1 | . . . 2 Ballistic Gun 1 | . 3 . . Ballistic Cannon 13 | . 10 13 16 Launcher 3 | . . . 8 Peak Build Rating 14 | 7 11 13 14 Average Rating 10 | 6 9 11 12 On Entrance 7 | . 7 11 13 Avg Prop Armor Cover (%) 7 | . . . 7 Naked Turns . | . . . . Heaviest Build 32 | 15 30 26 32 Greatest Support 40 | 40 40 40 40 Greatest Overweight (x) 1 | . . . 1 Average Overweight (x) . | . . . . Largest Inventory Capacity 15 | 8 15 10 10 Average Capacity 9 | 7 9 10 10 Most Carried 10 | 5 10 10 10 Average Carried 7 | 1 7 9 9 Final Capacity 10 | 8 10 10 10 Final Carried 10 | 3 10 10 9 Class Distribution -------------------- 100% | Mutant Dominant Class ---------------- Mutant | -10/Materials Mutant | -10/Mines Mutant | -10/Subcaves Resources | -11 -10 -10 -10 ----------- Run | Yrd Mat Min Sub Matter Collected 580 | 342 79 . 159 Remotely . | . . . . Salvage Created 608 | 307 133 . 168 Parts 51 | 27 7 . 17 Haulers Intercepted . | . . . . Recyclers Shooed . | . . . . Parts Field Recycled . | . . . . Retrieved Matter . | . . . . Parts Self-Destructed 8 | . . . 8 Prevented . | . . . . Parts Restored . | . . . . Kills | -11 -10 -10 -10 ------- Run | Yrd Mat Min Sub Combat Hostiles Destroyed 13 | . 6 . 7 Guns 2 | . 2 . . Cannons 6 | . 4 . 2 AOE 5 | . . . 5 Classes Destroyed 8 | 3 3 . 2 Worker 2 | 2 . . . Tunneler 10 | 9 1 . . Recycler 1 | 1 . . . Watcher 1 | . 1 . . Swarmer 3 | . 3 . . Grunt 3 | . 3 . . Artisan 1 | . . . 1 Subdweller 7 | . . . 7 Best Kill Streak 4 | 3 4 . 2 Combat Bots Only 3 | . 3 . 2 Max Kills in Single Turn 2 | 1 1 . 2 Gunslinging . | . . . . Exploded 2 | . . . 2 Melee . | . . . . Uniques/NPCs Destroyed . | . . . . Combat | -11 -10 -10 -10 -------- Run | Yrd Mat Min Sub Hostile Shots Fired 100 | . 60 . 40 Missed 29 | . 20 . 9 Hits 71 | . 40 . 31 Projectile 71 | . 40 . 31 AOE 6 | . . . 6 Damage Taken 1356 | . 413 . 943 Core 250 | . 97 . 153 Absorbed by Shields . | . . . . Core Remaining (%) 100 | 100 . . . Volleys Fired 75 | 24 24 . 27 Largest 2 | 2 2 . 2 Hottest 113 | 70 100 . 113 Shots Fired 145 | 48 46 . 51 Gun 70 | 48 22 . . Cannon 64 | . 22 . 42 Launcher 9 | . . . 9 Special 2 | . 2 . . Kinetic 84 | 24 22 . 38 Thermal 52 | 24 24 . 4 Explosive 9 | . . . 9 Electromagnetic . | . . . . Robot Hit Streak 11 | 6 8 . 11 Robot Miss Streak 4 | 2 4 . 2 Penetration Max . | . . . . Secondary Targets . | . . . . Shots Hit Robots 84 | 22 25 . 37 Core Hits 37 | 12 11 . 14 Critical Kills . | . . . . Critical Parts Destroyed . | . . . . Critical Strikes 3 | 2 1 . . Burn 2 | 2 . . . Blast 1 | . 1 . . Melee Attacks . | . . . . Impact . | . . . . Slashing . | . . . . Piercing . | . . . . Sneak Attacks . | . . . . Combat Hostiles . | . . . . Follow-up Attacks . | . . . . Damage Inflicted 1944 | 291 475 . 1178 Guns 422 | 291 131 . . Cannons 875 | . 344 . 531 Explosions 647 | . . . 647 Melee . | . . . . Ramming . | . . . . Kinetic 903 | 141 344 . 418 Thermal 394 | 150 131 . 113 Explosive 647 | . . . 647 Electromagnetic . | . . . . Impact . | . . . . Slashing . | . . . . Piercing . | . . . . Highest Corruption . | . . . . Average Corruption . | . . . . Corruption Purged . | . . . . Corruption Blocked . | . . . . Overload Shots . | . . . . Overflow Damage 4 | . 4 . . Projectiles 4 | . 4 . . Explosions . | . . . . Melee . | . . . . Knockbacks 9 | . 4 . 5 Impact . | . . . . Kinetic 9 | . 4 . 5 Secondary . | . . . . Self-Inflicted Damage 18 | . . . 18 Shots 1 | . . . 1 Rammed . | . . . . Targets Rammed . | . . . . Kicked . | . . . . Crushed . | . . . . Highest Temperature 312 | 36 312 . 6 Average Temperature 59 | 11 95 . 3 Received Heat Transfer 189 | . 129 . 60 Siege Activations . | . . . . Martial Activations . | . . . . Shielding Activations . | . . . . Robots Disrupted . | . . . . Combat Hostiles . | . . . . Robots Corrupted . | . . . . Combat Hostiles . | . . . . Parts Fried . | . . . . Impact Corruptions . | . . . . Robots Melted . | . . . . Combat Hostiles . | . . . . Parts Melted 2 | 2 . . . Heat Transferred 1110 | 592 370 . 148 Parts Sabotaged . | . . . . Parts Stolen . | . . . . Parts Stripped . | . . . . Power Chain Reactions . | . . . . Alert | -11 -10 -10 -10 ------- Run | Yrd Mat Min Sub Maximum Alert Level . | . . . . Low Security (%) 100 | 100 100 100 . Level 1 . | . . . . Level 2 . | . . . . Level 3 . | . . . . Level 4 . | . . . . Level 5 . | . . . . High Security . | . . . . Max Security . | . . . . Peak Influence 77 | 10 77 . . Initial . | . . . . Average 15 | 1 31 . . Influence Increases 252 | 60 192 . . Destroy 0b10 Robot/C 120 | . 120 . . Destroy 0b10 Robot/NC 70 | 60 10 . . Destroy Leader 22 | . 22 . . Successful Hack 8 | . 8 . . Destroy Structure 2 | . 2 . . Lose Combat Pursuer 30 | . 30 . . Influence Decreases 252 | 60 190 2 . Entered New Map 2 | . . 2 . Time Decay 240 | 60 180 . . Lost Part 10 | . 10 . . Squads Dispatched 1 | . . 1 . Investigation 1 | . . 1 . Extermination . | . . . . Reinforcement . | . . . . Assault . | . . . . Garrison . | . . . . Intercept . | . . . . Searches Triggered . | . . . . Construction Impeded . | . . . . Haulers Reinforced . | . . . . Active Scanning Responses . | . . . . Cargo Convoy Interrupts . | . . . . Stealth | -11 -10 -10 -10 --------- Run | Yrd Mat Min Sub Distress Signals 2 | . 2 . . Communications Jammed . | . . . . Distress Signals . | . . . . Times Spotted 20 | . 11 . 9 Peak Tracking Total 6 | . 6 . 2 Tactical Retreats 1 | . 1 . . Traps | -11 -10 -10 -10 ------- Run | Yrd Mat Min Sub Traps Triggered 1 | . 1 . . Indirectly . | . . . . Trap Hack Attempts . | . . . . Triggered . | . . . . Disarmed . | . . . . Reprogrammed . | . . . . Reused . | . . . . Traps Extracted . | . . . . Installed . | . . . . Triggered . | . . . . Machines | -11 -10 -10 -10 ---------- Run | Yrd Mat Min Sub Machines Disabled . | . . . . Max in Single Turn . | . . . . Machines Repaired . | . . . . Machines Dismantled . | . . . . Machines Sabotaged . | . . . . Overloaded Fab Kills . | . . . . Hacking | -11 -10 -10 -10 --------- Run | Yrd Mat Min Sub Machines Accessed 5 | . 4 1 . Terminals 3 | . 3 . . Fabricators . | . . . . Repair Stations . | . . . . Recycling Units 1 | . 1 . . Scanalyzers . | . . . . Garrison Access . | . . . . Total Hacks 12 | . 11 1 . Successful 7 | . 6 1 . Failed 5 | . 5 . . Catastrophic 1 | . 1 . . Database Lockouts . | . . . . Manual 6 | . 6 . . Terminals 9 | . 9 . . Fabricators . | . . . . Repair Stations . | . . . . Recycling Units 2 | . 2 . . Scanalyzers . | . . . . Garrison Access . | . . . . Terminal Hacks 5 | . 4 1 . Robot Analysis 1 | . 1 . . Open Door 1 | . . 1 . Branch Access Points 1 | . 1 . . Alert Level 1 | . 1 . . Maintenance Status 1 | . 1 . . Fabricator Hacks . | . . . . Repair Station Hacks . | . . . . Recycling Unit Hacks 1 | . 1 . . Report Inventory 1 | . 1 . . Scanalyzer . | . . . . Garrison Access Hacks . | . . . . Unauthorized Hacks 1 | . 1 . . Terminals . | . . . . Fabricators . | . . . . Repair Stations . | . . . . Recycling Units 1 | . 1 . . Monitor 1 | . 1 . . Scanalyzers . | . . . . Garrison Access . | . . . . Data Cores Recovered . | . . . . Used . | . . . . Hacking Detections 3 | . 3 . . Full Trace Events . | . . . . Feedback Events . | . . . . Feedback Blocked . | . . . . Robot Schematics Acquired . | . . . . Robots Built . | . . . . Authchips . | . . . . Time . | . . . . Total Robot Build Rating . | . . . . Part Schematics Acquired . | . . . . Parts Built . | . . . . Authchips . | . . . . Time . | . . . . Total Part Build Rating . | . . . . Part Studies Acquired . | . . . . Parts Repaired . | . . . . Time . | . . . . Parts Recycled . | . . . . Recycled Matter . | . . . . Retrieved Matter . | . . . . Retrieved Components . | . . . . Parts Scanalyzed . | . . . . Part Schematics Acquired . | . . . . Parts Damaged . | . . . . Bothacking | -11 -10 -10 -10 ------------ Run | Yrd Mat Min Sub Used RIF Installer . | . . . . Robots Hacked . | . . . . Non-combat . | . . . . Combat . | . . . . Robot Hacks Applied . | . . . . Relay Couplers Released . | . . . . Fabnet Peak Effective % . | . . . . Robots Rewired . | . . . . Allies Hacked . | . . . . Hacks Repelled . | . . . . Allies | -11 -10 -10 -10 -------- Run | Yrd Mat Min Sub Total Allies . | . . . . Largest Group . | . . . . Highest-Rated Group . | . . . . Highest-Rated Ally . | . . . . Total Orders . | . . . . Ally Attacks . | . . . . Total Damage . | . . . . Kills . | . . . . Allies Corrupted . | . . . . Allies Melted . | . . . . Intel | -11 -10 -10 -10 ------- Run | Yrd Mat Min Sub Active Infowar (turns) 934 | 273 468 160 33 Sensors 125 | . . 92 33 Terrain 401 | . 333 68 . Seismic 408 | 273 135 . . Robot Analysis Total 1 | . 1 . . Derelict Logs Recovered . | . . . . Drone Launches . | . . . . Drone Recoveries . | . . . . Exploration | -11 -10 -10 -10 ------------- Run | Yrd Mat Min Sub Turns Passed 1602 | 373 485 171 573 Spaces Moved 795 | 180 238 100 277 Core 9 | 9 . . . Treads 669 | 171 238 100 160 Legs . | . . . . Wheels 117 | . . . 117 Hover . | . . . . Flight . | . . . . Fastest Speed 50 | 50 160 160 120 Average Speed 163 | 154 160 160 172 Slowest Speed 240 | 160 160 160 240 Overloaded Moves . | . . . . Propulsion Burnouts . | . . . . Robots Hopped . | . . . . Potential Cave-ins . | . . . . Cave-ins Triggered . | . . . . Exploration Rate (%) 22 | 8 43 16 21 Regions Visited 3 Branch Regions 2 Pre-discovered Areas . | . . . . Known Exits Taken 1 | . 1 . . Unknown Exits Taken 2 | 1 . 1 . Scrap Searched . | . . . . Spaces Dug 2 | . 2 . . Terrain Destroyed 66 | . 2 . 64 Melee . | . . . . Projectile 2 | . 2 . . AOE 64 | . . . 64 Terrain Rammed . | . . . . Walls Destroyed . | . . . . Machines Disabled . | . . . . Actions | -11 -10 -10 -10 --------- Run | Yrd Mat Min Sub Total 955 | 228 291 114 322 Wait 15 | 6 9 . . Move 792 | 179 237 99 277 Hop . | . . . . Pick Up 28 | 11 9 3 5 Fast Attach 6 | . 1 3 2 Attach 11 | 7 1 . 3 Detach . | . . . . Swap 13 | . 7 2 4 Drop 15 | 1 3 7 4 Fire 75 | 24 24 . 27 Melee . | . . . . Ram . | . . . . Kick . | . . . . Crush . | . . . . Escape Stasis . | . . . . Rewire . | . . . . Trap . | . . . . Miscellaneous . | . . . . Route ------- -11/Scrapyard -10/Materials (discovered 3 exits: [*Mat] / *Min x2) -10/Mines -10/Subcaves History --------- Turn | Location | Event 3 | -11/Scrapyard | Discovered new exit (range 15) 374 | -11/Scrapyard | Entered Materials 375 | -10/Materials | Build established: Mutant 566 | -10/Materials | Discovered new exit (range 12) 747 | -10/Materials | Discovered new exit (range 11) 814 | -10/Materials | Identified exit to Mines 859 | -10/Materials | Entered Mines 913 | -10/Mines | Met a Derelict shopkeep closing up shop 969 | -10/Mines | Discovered new exit (range 9) 1030 | -10/Mines | Entered Subcaves 1031 | -10/Subcaves | Approached by a straggling Scientist 1089 | -10/Subcaves | Core integrity fell below 50% 1520 | -10/Subcaves | Ambushed by angry Subdweller bent on revenge 1583 | -10/Subcaves | Disturbed a concealed Subdweller 1598 | -10/Subcaves | Core integrity fell below 20% 1603 | -10/Subcaves | Destroyed by VV-CYZ(R) with Subdweller Shrapnel Launcher Last Messages --------------- SP-L17(u) destroyed. Subatomizers dissect the Multitool. Dropped Sub. Beam Cannon. Acquired Multitool. Acquired 15 matter. 7E-WFZ(R) angrily emerges from the Twisted Machinery. 7E-WFZ(R): "ECOKILL!" 7E-WFZ(R) destroyed. Subatomizers dissect the Sub. Beam Cannon. The unstable cave ceiling collapses. Acquired 19 matter. The unstable cave ceiling collapses. Subatomizers dissect the Sub. Beam Cannon. VV-CYZ(R): "YOUGO!" Lgt. Treads destroyed. Imp. Light Cannon destroyed. Hrd. Light Armor Plating destroyed. Destroyed Scrap Shield. Sub. Monowheel destroyed. Map ----- +----------------------------------------------------+ | | | | | | | | | | | | | | | ?????????????????????????????????????????????????? | | ?????????????????????????????????????????????????? | | ?????????????????????????????????????????????????? | | ?????????????????????????????????????????????????? | | ?????????????????????????????????????????????????? | | ?????????????????????????????????????????????????? | | ?????????????????????????????????????????????????? | | ?????????????????????????????????????????????????? | | ?????????????????????????????????????????????????? | | ???????????????????????#########?????????????????? | | ???????????????????????#< #?????????????????? | | ???????????????????????# $ #?????????????????? | | ??????????????????????## ??????????????????? | | ????????????????????### R ##?????????????????? | | ????????????????????# ##????????????????? | | ????######??????????# ##???????????????? | | ???## #??????????# ##??????????????? | | ??## #?????####?# ########???????? | | #?#" ###???# ### @ ##??????? | | ###"" "" "??## ##; #??????? | | "" "" ## # ## #??????? | | ""#?# # # ####??????? | | ""### ### #?????????? | | ### ### * #### # #????????? | | #?# ### ] ###?## #????????? | | ??## ## ] ##??## #??????? | | ???# ## ##??## ## #### ????? | | ??## ## ### ##? ##???# ?????? | | ??# ## ####?? #??????# ????? | | ??## # ##### ###????? #????????????? | | ???###### ##???# #####????????#????????????? | | ????????# ####### ##?????????????????????????? | | ???????## ## #??????????????????????????? | | ???????# ####???????????????????????? | | ???????## #???????????????????????? | | ????????## ## # ## #????????????????? | | ?????????###### ### ???????????????? | | ????????????? #?# ## ??????????????? | | ???????????# #?####?? ###???????????????? | | ???????????# ???????? ###?????????????????? | | ???????????# ????????##???????????????????? | | ???????????# ????????????????????????????? | | ??????????? #### #???????????????????????????? | +----------------------------------------------------+ Best States ------------- Heat Dissipation 25 Energy Generation 14 Energy Capacity 275 Matter Stores 300 Matter Capacity 300 Sight Range 16 Robot Scan Range 15 Terrain Scan Range 16 Terrain Scan Density 10 Armor Coverage 150 Evasion (%) 40 Recoil Reduction 2 Item Schematics ----------------- None Robot Schematics ------------------ None Fabricated ------------ Nothing Repaired ---------- Nothing Studied --------- None Alien Tech Used ----------------- None Achievements -------------- None Challenges ------------ None Game ------ Seed RagnarokHoverMinigun Manual? 0 Play Time 00:13:09 Cumulative 34.8 hours Start 2025.11.15 @ 07:39:53 End 2025.11.15 @ 07:52:44 Sessions 1 Manual Loads 0 Difficulty Rogue Special Mode None Game No. 32 Rogue 4 Adventurer 21 Explorer 7 Win Type - Total 1 Types 1/0/0/0/0/0/0/0/0/0 Lore% 35 Gallery% 37 Achievement% 31 Wizard Run 0 Options --------- Layout 1 ASCII 0 Keyboard 0 Movement Mouse Keybinds 0 Fullscreen 1 Font 48/Smallcaps Map View 50x35 Zoom Use 0% Tactical HUD 0 Map Filters NONE Filters NONE Steam 1 RUN: 590632aa-63ed-478c-b44c-ccd73657c248